bitfinex/quotes_BTCUSD_20241202
["timestamp","ask_amount","ask_price","bid_price","bid_amount"]
[1733148514959,0.85804405,95882.0,95881.0,1.0006779]
[1733148516707,0.95178053,95882.0,95881.0,1.0006779]
[1733148516910,0.85804405,95882.0,95881.0,1.0006779]
[1733148519275,0.95176765,95882.0,95881.0,1.0006779]
[1733148522707,0.85804405,95882.0,95881.0,1.0006779]
[1733148524768,0.99864372,95882.0,95881.0,1.0006779]
[1733148525815,1.04551028,95882.0,95881.0,1.0006779]
[1733148526051,0.90244405,95882.0,95881.0,1.0006779]
[1733148526501,0.90644405,95882.0,95881.0,1.0016779]
[1733148526932,0.90244405,95882.0,95881.0,1.0006779]
[1733148527151,0.90644405,95882.0,95881.0,1.0026779]
[1733148539198,0.85804405,95882.0,95881.0,1.0026779]
[1733148539643,0.78104405,95882.0,95881.0,1.0026779]
[1733148540072,0.96858017,95882.0,95881.0,1.0026779]
[1733148540298,0.96859085,95882.0,95881.0,1.0026779]
[1733148540495,0.78104405,95882.0,95881.0,1.0026779]
[1733148540701,0.78104405,95882.0,95881.0,1.0016779]
[1733148541083,0.96859032,95882.0,95881.0,1.0016779]
[1733148541185,0.78204405,95882.0,95881.0,1.0026779]
[1733148541601,0.78104405,95882.0,95881.0,1.0016779]
[1733148542057,0.77804405,95882.0,95881.0,1.0016779]
[1733148542480,1.02147688,95882.0,95881.0,1.0026779]
[1733148542689,0.77804405,95882.0,95881.0,1.0016779]
[1733148542898,1.01247688,95882.0,95881.0,1.0016779]
[1733148543173,1.02147688,95882.0,95881.0,1.0026779]
[1733148543841,0.86764405,95882.0,95881.0,1.0026779]
[1733148544314,1.88682705,95882.0,95881.0,0.8983829]
[1733148544577,1.88682705,95882.0,95881.0,0.72134456]
[1733148544826,2.13642705,95882.0,95881.0,0.55953548]
[1733148545267,2.41784295,95882.0,95881.0,0.55953548]
[1733148545483,2.13642705,95882.0,95881.0,0.55953548]
[1733148545695,2.13642705,95882.0,95881.0,0.49695848]
[1733148545921,2.12742705,95882.0,95881.0,0.45424048]
[1733148546155,1.10824405,95882.0,95881.0,0.45424048]
[1733148546390,1.12906433,95882.0,95881.0,0.45424048]
[1733148546619,1.13806433,95882.0,95881.0,0.45524048]
[1733148546907,1.09246433,95882.0,95881.0,0.45524048]
[1733148547151,1.09146433,95882.0,95881.0,0.45424048]
[1733148547373,1.24536875,95882.0,95881.0,0.45424048]
[1733148547603,1.19845974,95882.0,95881.0,0.45424048]
[1733148547821,1.00186433,95882.0,95881.0,0.45324048]
[1733148548041,1.00186433,95882.0,95881.0,0.45424048]
[1733148548273,1.01086433,95882.0,95881.0,0.45424048]
[1733148548719,1.00186433,95882.0,95881.0,0.45324048]
[1733148548932,1.00886433,95882.0,95881.0,0.45424048]
[1733148549155,1.01786433,95882.0,95881.0,0.45524048]
[1733148549384,1.00886433,95882.0,95881.0,0.45424048]
[1733148549584,1.01786433,95882.0,95881.0,0.45524048]
[1733148550060,1.20545974,95882.0,95881.0,0.45524048]
[1733148551102,0.98063946,95882.0,95881.0,0.45524048]
[1733148551437,0.79304405,95882.0,95881.0,0.45524048]
[1733148551883,0.79304405,95882.0,95881.0,0.45696768]
[1733148553932,0.98063946,95882.0,95881.0,0.45696768]
[1733148554008,0.79304405,95882.0,95881.0,0.45696768]
[1733148555025,0.91904405,95882.0,95881.0,0.45696768]
[1733148555243,1.86887005,95882.0,95881.0,0.43610868]
[1733148555476,2.04234408,95882.0,95881.0,0.43610868]
[1733148555684,1.76093205,95882.0,95881.0,0.43610868]
[1733148556114,1.96493205,95882.0,95881.0,0.43610868]
[1733148557239,1.98544441,95882.0,95881.0,0.43610868]
[1733148557908,1.98544441,95882.0,95881.0,0.35267268]
[1733148558135,1.98544441,95882.0,95881.0,0.33181368]
[1733148558354,2.26696685,95882.0,95881.0,0.33181368]
[1733148558638,2.26696727,95882.0,95881.0,0.33181368]
[1733148559082,1.68145027,95882.0,95881.0,0.33181368]
[1733148559309,1.63445027,95882.0,95881.0,0.33181368]
[1733148559540,1.37807927,95882.0,95881.0,0.33181368]
[1733148559751,1.49141527,95882.0,95881.0,0.33181368]
[1733148561102,1.47090291,95882.0,95881.0,0.33181368]
[1733148561588,1.47090291,95882.0,95881.0,0.22751868]
[1733148561589,1.18938005,95882.0,95881.0,0.22751868]
[1733148561828,1.48618005,95882.0,95881.0,0.12322368]
[1733148562692,1.48618005,95882.0,95881.0,0.10236368]
[1733148562876,1.48618005,95882.0,95881.0,0.03978368]
[1733148563092,1.48618005,95882.0,95881.0,0.01892368]
[1733148563649,1.47018005,95882.0,95881.0,0.01692368]
[1733148563878,1.47018005,95882.0,95875.0,5.8e-07]
[1733148563879,1.170802,95876.0,95875.0,5.8e-07]
[1733148564004,1.40044721,95876.0,95875.0,5.8e-07]
[1733148564226,1.4113453,95876.0,95875.0,5.8e-07]
[1733148565097,1.4203453,95876.0,95875.0,5.8e-07]
[1733148565346,1.4293453,95876.0,95875.0,5.8e-07]
[1733148572662,1.74605852,95876.0,95875.0,5.8e-07]
[1733148572912,1.4293453,95876.0,95875.0,5.8e-07]
[1733148573556,1.6563453,95876.0,95875.0,5.8e-07]
[1733148574010,2.11821874,95876.0,95875.0,5.8e-07]
[1733148574312,2.11821874,95876.0,95839.0,0.0008633]
[1733148574313,0.870881,95840.0,95839.0,0.0008633]
[1733148574519,1.83237521,95840.0,95839.0,0.0008633]
[1733148574743,1.77878487,95840.0,95839.0,0.0008633]
[1733148574957,0.98453087,95840.0,95839.0,0.0008633]
[1733148575180,1.12511142,95840.0,95839.0,0.1315633]
[1733148575408,0.98453087,95840.0,95839.0,0.1315633]
[1733148575628,0.98459006,95840.0,95839.0,0.1315633]
[1733148576728,0.99359006,95840.0,95839.0,0.1315633]
[1733148576946,0.99859006,95840.0,95839.0,0.1315633]
[1733148577592,0.99359006,95840.0,95839.0,0.1315633]
[1733148577826,0.99959006,95840.0,95839.0,0.1315633]
[1733148578261,0.81999969,95840.0,95839.0,0.1315633]
[1733148578698,0.81999969,95840.0,95839.0,0.0008633]
[1733148578910,1.01999969,95840.0,95839.0,0.1283633]
[1733148579339,0.81999969,95840.0,95839.0,0.1283633]
[1733148579597,1.01999969,95840.0,95839.0,0.1283633]
[1733148579805,0.81999969,95840.0,95839.0,0.1283633]
[1733148580883,0.59959006,95840.0,95839.0,0.1283633]
[1733148582847,0.59059006,95840.0,95839.0,0.1283633]
[1733148583287,0.59259006,95840.0,95839.0,0.1283633]
[1733148583503,0.59659006,95840.0,95839.0,0.1283633]
[1733148585879,0.59659006,95840.0,95839.0,0.0470633]
[1733148586130,0.59150368,95840.0,95839.0,0.0470633]
[1733148589714,0.5871481,95840.0,95839.0,0.0470633]
[1733148595341,0.5871481,95840.0,95839.0,0.0008633]
[1733148596918,0.5871481,95840.0,95839.0,0.00027821]
[1733148598469,0.5888755,95840.0,95839.0,0.00027821]
[1733148602330,0.48603029,95840.0,95839.0,0.12917821]
[1733148602552,0.48603029,95840.0,95839.0,0.04997821]
[1733148603744,0.42891667,95840.0,95839.0,0.04997821]
[1733148603962,0.22023567,95840.0,95839.0,0.04997821]
[1733148604155,0.27734929,95840.0,95839.0,0.04997821]
[1733148605099,0.27734929,95840.0,95839.0,0.13207821]
[1733148606504,0.27437467,95840.0,95839.0,0.13207821]
[1733148606718,0.27037467,95840.0,95839.0,0.13207821]
[1733148606921,0.27237467,95840.0,95839.0,0.13207821]
[1733148613511,0.01526105,95840.0,95839.0,0.15507821]
[1733148613932,0.00878659,95840.0,95839.0,0.15507821]
[1733148614162,0.21529841,95840.0,95839.0,0.15507821]
[1733148614382,0.21329841,95840.0,95839.0,0.13207821]
[1733148614598,0.27041203,95840.0,95839.0,0.13207821]
[1733148614835,0.27141203,95840.0,95839.0,0.13207821]
[1733148615274,0.27041203,95840.0,95839.0,0.13207821]
[1733148615498,0.27141203,95840.0,95839.0,0.13207821]
[1733148615709,0.26641203,95840.0,95839.0,0.13207821]
[1733148615933,0.26741203,95840.0,95839.0,0.13207821]
[1733148616390,0.26641203,95840.0,95839.0,0.13207821]
[1733148616597,0.26741203,95840.0,95839.0,0.13207821]
[1733148619225,0.47609303,95840.0,95839.0,0.13207821]
[1733148619445,0.26741203,95840.0,95839.0,0.13207821]
[1733148620558,0.21029841,95840.0,95839.0,0.13207821]
[1733148620765,0.26741203,95840.0,95839.0,0.13207821]
[1733148620975,0.06741203,95840.0,95839.0,0.36376121]
[1733148621198,0.21029841,95840.0,95839.0,0.36376121]
[1733148621631,0.01029841,95840.0,95839.0,0.36376121]
[1733148621844,0.21029841,95840.0,95839.0,0.15507821]
[1733148622049,0.26741203,95840.0,95839.0,0.15507821]
[1733148622298,0.21029841,95840.0,95839.0,0.15507821]
[1733148622511,0.26741203,95840.0,95839.0,0.15507821]
[1733148624086,0.01029841,95840.0,95839.0,0.15507821]
[1733148624307,0.21029841,95840.0,95839.0,0.15507821]
[1733148629296,0.21029841,95840.0,95839.0,0.13207821]
[1733148632684,0.21029841,95840.0,95839.0,0.15507821]
[1733148633356,0.00378659,95840.0,95839.0,0.15507821]
[1733148633793,0.01075284,95840.0,95839.0,0.15507821]
[1733148634015,0.00378659,95840.0,95839.0,0.25977011]
[1733148634326,0.00378659,95840.0,95839.0,0.25792342]
[1733148655033,0.00378659,95840.0,95839.0,0.00027821]
[1733148655034,0.26083425,95840.0,95839.0,0.00027821]
[1733148655239,0.47586519,95840.0,95839.0,0.00027821]
[1733148656243,0.7049104,95840.0,95839.0,0.00027821]
[1733148656844,0.9049104,95840.0,95839.0,0.00027821]
[1733148657104,1.04463991,95840.0,95839.0,0.00027821]
[1733148657284,0.99769517,95840.0,95839.0,0.00027821]
[1733148658062,0.9039104,95840.0,95839.0,0.00027821]
[1733148658288,0.99769517,95840.0,95839.0,0.00027821]
[1733148658498,0.92500511,95840.0,95839.0,0.00027821]
[1733148658936,0.92700511,95840.0,95839.0,0.00027821]
[1733148659071,0.92400511,95840.0,95839.0,0.00027821]
[1733148659273,0.92600511,95840.0,95839.0,0.00027821]
[1733148659482,0.93000511,95840.0,95839.0,0.00027821]
[1733148659938,0.92400511,95840.0,95839.0,0.00027821]
[1733148660212,0.93800511,95840.0,95839.0,0.00027821]
[1733148660442,0.92900511,95840.0,95839.0,0.00027821]
[1733148661580,0.90283701,95840.0,95839.0,0.00027821]
[1733148661787,0.90783701,95840.0,95839.0,0.00027821]
[1733148661994,0.91683701,95840.0,95839.0,0.00027821]
[1733148662922,1.11683701,95840.0,95839.0,0.00027821]
[1733148663152,1.25738297,95840.0,95839.0,0.00027821]
[1733148663364,1.35102179,95840.0,95839.0,0.00027821]
[1733148663585,1.11683701,95840.0,95839.0,0.00027821]
[1733148664460,1.25725415,95840.0,95839.0,0.00027821]
[1733148664927,1.25225415,95840.0,95839.0,0.00027821]
[1733148665131,1.10983701,95840.0,95839.0,0.00027821]
[1733148665356,1.11883701,95840.0,95839.0,0.00027821]
[1733148665575,1.11183701,95840.0,95839.0,0.00027821]
[1733148665787,1.10283701,95840.0,95839.0,0.00027821]
[1733148665998,1.11883701,95840.0,95839.0,0.00027821]
[1733148666458,1.21240886,95840.0,95839.0,0.00027821]
[1733148667430,1.11883701,95840.0,95839.0,0.00027821]
[1733148669668,1.13982515,95840.0,95839.0,0.00027821]
[1733148669878,1.11883701,95840.0,95839.0,0.00027821]
[1733148670811,1.11883701,95840.0,95839.0,0.00017821]
[1733148671038,0.87003701,95840.0,95839.0,0.00017821]
[1733148671451,1.09097499,95840.0,95839.0,0.00017821]
[1733148672078,1.08397499,95840.0,95839.0,0.00017821]
[1733148672255,1.07497499,95840.0,95839.0,0.00017821]
[1733148672469,1.07897499,95840.0,95839.0,0.00017821]
[1733148672680,1.08697499,95840.0,95839.0,0.00017821]
[1733148673907,1.13237499,95840.0,95839.0,0.00017821]
[1733148674724,1.12837499,95840.0,95839.0,0.00017821]
[1733148674896,1.12037499,95840.0,95839.0,0.00017821]
[1733148675124,1.12537499,95840.0,95839.0,0.00017821]
[1733148675329,1.37537499,95840.0,95839.0,0.00017821]
[1733148675569,0.86583762,95820.0,95801.0,0.0017264]
[1733148675781,1.09068283,95820.0,95801.0,0.0017264]
[1733148675984,3.09849279,95820.0,95801.0,0.0017264]
[1733148676200,3.07836579,95820.0,95801.0,0.0017264]
[1733148676460,3.05543645,95820.0,95819.0,4e-07]
[1733148676670,1.10049426,95820.0,95819.0,4e-07]
[1733148677122,1.11585562,95812.0,95811.0,6e-07]
[1733148677327,1.34310083,95812.0,95811.0,6e-07]
[1733148677531,1.34900911,95812.0,95811.0,6e-07]
[1733148677977,1.81000911,95812.0,95811.0,6e-07]
[1733148679007,1.81600911,95812.0,95811.0,6e-07]
[1733148679394,1.81781077,95812.0,95811.0,6e-07]
[1733148679804,1.82681077,95812.0,95811.0,6e-07]
[1733148680438,1.81781077,95812.0,95811.0,6e-07]
[1733148680845,1.82081077,95812.0,95811.0,6e-07]
[1733148681063,1.56900911,95812.0,95811.0,6e-07]
[1733148681263,1.57800911,95812.0,95811.0,6e-07]
[1733148681706,1.56900911,95812.0,95811.0,6e-07]
[1733148682155,1.56000911,95812.0,95811.0,6e-07]
[1733148682570,1.56900911,95812.0,95811.0,6e-07]
[1733148682792,1.52020911,95812.0,95811.0,6e-07]
[1733148683010,1.27209549,95812.0,95811.0,6e-07]
[1733148683251,1.52020911,95812.0,95811.0,6e-07]
[1733148683716,1.52920911,95812.0,95811.0,6e-07]
[1733148684402,1.52020911,95812.0,95811.0,6e-07]
[1733148685415,1.52720911,95812.0,95811.0,6e-07]
[1733148685639,0.79060911,95812.0,95811.0,6e-07]
[1733148686339,0.53349549,95812.0,95811.0,6e-07]
[1733148686568,0.58160911,95812.0,95811.0,6e-07]
[1733148686820,0.59060911,95812.0,95811.0,6e-07]
[1733148687730,0.58360911,95812.0,95811.0,6e-07]
[1733148687962,0.58860911,95812.0,95811.0,6e-07]
[1733148688434,0.58360911,95812.0,95811.0,6e-07]
[1733148688661,0.57460911,95812.0,95811.0,6e-07]
[1733148688895,0.58033711,95812.0,95811.0,6e-07]
[1733148689123,0.58933711,95812.0,95811.0,6e-07]
[1733148689335,0.78933711,95812.0,95811.0,6e-07]
[1733148689559,0.87193711,95812.0,95811.0,6e-07]
[1733148690639,0.78933711,95812.0,95811.0,6e-07]
[1733148692616,0.58933711,95812.0,95811.0,6e-07]
[1733148693334,0.4864919,95812.0,95811.0,6e-07]
[1733148693554,0.2777499,95812.0,95811.0,6e-07]
[1733148694198,0.2737499,95812.0,95811.0,6e-07]
[1733148694411,0.2747499,95812.0,95811.0,6e-07]
[1733148695122,0.2657499,95812.0,95811.0,6e-07]
[1733148695334,0.2687499,95812.0,95811.0,6e-07]
[1733148697986,0.37159511,95812.0,95811.0,6e-07]
[1733148700017,0.2687499,95812.0,95811.0,6e-07]
[1733148700253,0.2687499,95812.0,95811.0,0.1024006]
[1733148700974,0.2687499,95812.0,95811.0,6e-07]
[1733148708906,0.37159511,95812.0,95811.0,6e-07]
[1733148714632,0.3923915,95812.0,95811.0,6e-07]
[1733148715749,0.37159511,95812.0,95811.0,6e-07]
[1733148722936,0.2687499,95812.0,95811.0,6e-07]
[1733148723183,0.2687499,95812.0,95811.0,0.0781006]
[1733148724348,0.2687499,95812.0,95811.0,6e-07]
[1733148725896,0.2677499,95812.0,95811.0,6e-07]
[1733148726112,0.2687499,95812.0,95811.0,6e-07]
[1733148726789,0.2677499,95812.0,95811.0,6e-07]
[1733148727006,0.2687499,95812.0,95811.0,6e-07]
[1733148730427,0.37159511,95812.0,95811.0,6e-07]
[1733148738473,0.69429511,95812.0,95811.0,6e-07]
[1733148738699,0.89429511,95812.0,95811.0,6e-07]
[1733148739228,1.21145902,95812.0,95811.0,6e-07]
[1733148739463,0.89329511,95812.0,95811.0,6e-07]
[1733148739692,0.69329511,95812.0,95811.0,6e-07]
[1733148739918,0.69029511,95812.0,95811.0,6e-07]
[1733148740389,0.64459511,95812.0,95811.0,6e-07]
[1733148740666,0.65359511,95812.0,95811.0,6e-07]
[1733148741097,0.65059511,95812.0,95811.0,6e-07]
[1733148741306,0.65959511,95812.0,95811.0,6e-07]
[1733148741739,0.65359511,95812.0,95811.0,6e-07]
[1733148741958,0.66059511,95812.0,95811.0,6e-07]
[1733148742832,0.70769511,95812.0,95811.0,6e-07]
[1733148744249,0.72899792,95812.0,95811.0,6e-07]
[1733148745125,0.93079958,95812.0,95811.0,6e-07]
[1733148746740,0.90949677,95812.0,95811.0,6e-07]
[1733148748588,1.45949677,95812.0,95811.0,6e-07]
[1733148748820,0.74738362,95799.0,95798.0,0.0008634]
[1733148749049,2.41112583,95799.0,95798.0,0.0008634]
[1733148749305,2.37610232,95799.0,95798.0,0.0008634]
[1733148749532,2.62510232,95799.0,95798.0,4e-07]
[1733148749763,1.10682698,95799.0,95798.0,4e-07]
[1733148750013,1.38801881,95799.0,95798.0,4e-07]
[1733148750244,1.11082698,95799.0,95798.0,0.00059295]
[1733148750488,0.91782698,95799.0,95798.0,0.00059295]
[1733148750714,1.11782698,95799.0,95798.0,0.00059295]
[1733148751159,1.88450998,95799.0,95798.0,0.00059295]
[1733148751398,1.82521198,95799.0,95798.0,0.00059295]
[1733148752078,1.82521198,95799.0,95798.0,9.5e-07]
[1733148752312,1.11782698,95799.0,95798.0,9.5e-07]
[1733148752995,0.79070962,95787.0,95786.0,0.0017264]
[1733148753240,2.06158483,95787.0,95786.0,0.00190417]
[1733148753476,0.89535649,95787.0,95786.0,0.00190417]
[1733148753700,0.90114325,95787.0,95786.0,0.00190417]
[1733148754156,2.82370384,95787.0,95786.0,0.00190417]
[1733148754425,2.58640025,95787.0,95786.0,1.7e-07]
[1733148754663,1.96211462,95786.0,95785.0,7.7e-07]
[1733148754898,0.64225883,95786.0,95785.0,5.996e-05]
[1733148755134,0.83113184,95786.0,95785.0,9.6e-07]
[1733148755359,0.83685358,95786.0,95785.0,9.6e-07]
[1733148755645,0.64984725,95786.0,95785.0,9.6e-07]
[1733148755875,0.94132262,95781.0,95780.0,2.6e-07]
[1733148756110,1.24816783,95781.0,95780.0,5.957e-05]
[1733148756357,1.68835786,95781.0,95780.0,5.957e-05]
[1733148756577,1.54816783,95781.0,95780.0,5.7e-07]
[1733148756812,0.66593162,95777.0,95776.0,0.63821847]
[1733148757040,2.98856983,95777.0,95776.0,0.5966324]
[1733148757275,3.02051301,95777.0,95776.0,0.5966324]
[1733148757511,2.72729885,95777.0,95776.0,0.5966324]
[1733148757753,2.86740844,95777.0,95776.0,0.4922224]
[1733148758230,2.72729885,95777.0,95776.0,0.4922224]
[1733148758419,2.8772019,95777.0,95776.0,0.4922224]
[1733148758631,2.73717111,95777.0,95776.0,0.4922224]
[1733148758876,2.83050561,95777.0,95776.0,0.4295764]
[1733148759094,2.03693719,95777.0,95776.0,0.3878124]
[1733148759310,1.72360319,95777.0,95776.0,0.3878124]
[1733148759944,0.79149819,95777.0,95776.0,0.3878124]
[1733148760171,1.02145419,95777.0,95776.0,0.3878124]
[1733148760615,1.01425585,95777.0,95776.0,0.3878124]
[1733148760853,1.00625585,95777.0,95776.0,0.3878124]
[1733148761097,1.02325585,95777.0,95776.0,0.3878124]
[1733148761318,1.01425585,95777.0,95776.0,0.3878124]
[1733148761553,1.34785585,95777.0,95776.0,0.3878124]
[1733148762483,1.33985585,95777.0,95776.0,0.3878124]
[1733148762697,1.34785585,95777.0,95776.0,0.3878124]
[1733148763826,1.34785585,95777.0,95776.0,0.3669304]
[1733148764063,1.34785585,95777.0,95776.0,0.2834024]
[1733148764783,1.36914928,95777.0,95776.0,0.1789924]
[1733148765687,1.39214928,95777.0,95776.0,0.1789924]
[1733148765925,1.39214928,95777.0,95776.0,0.0745824]
[1733148766393,1.37514928,95777.0,95776.0,0.0745824]
[1733148766608,1.38414928,95777.0,95776.0,0.0745824]
[1733148766850,1.37185585,95777.0,95776.0,4e-07]
[1733148767067,1.68289985,95777.0,95776.0,4e-07]
[1733148767761,1.67389985,95777.0,95776.0,4e-07]
[1733148767978,1.68289985,95777.0,95776.0,4e-07]
[1733148768715,1.69189985,95777.0,95776.0,4e-07]
[1733148769567,1.69189985,95777.0,95776.0,1e-06]
[1733148769805,1.80169985,95777.0,95776.0,1e-06]
[1733148770259,6.24753585,95777.0,95776.0,1e-06]
[1733148770729,6.22976685,95777.0,95776.0,1e-06]
[1733148771168,6.10895185,95777.0,95776.0,1e-06]
[1733148771419,5.75604685,95777.0,95776.0,1e-06]
[1733148771685,5.75604685,95777.0,95736.0,0.00027867]
[1733148771686,0.45711362,95722.0,95694.0,0.047]
[1733148771918,1.08567383,95722.0,95708.0,0.0759]
[1733148772153,0.91365553,95722.0,95721.0,0.00025919]
[1733148772383,1.02703253,95722.0,95721.0,0.00025919]
[1733148772622,0.99880687,95722.0,95721.0,0.00025919]
[1733148772850,0.90664887,95722.0,95721.0,0.00025919]
[1733148773091,0.91064887,95722.0,95721.0,0.00025919]
[1733148773329,0.92260087,95722.0,95721.0,0.00025919]
[1733148773568,0.91860087,95722.0,95721.0,0.00025919]
[1733148773809,0.92540253,95722.0,95721.0,0.00025919]
[1733148774498,0.91640253,95722.0,95721.0,0.00025919]
[1733148775216,0.91140253,95722.0,95721.0,0.00025919]
[1733148775673,0.91740253,95722.0,95721.0,0.00025919]
[1733148775903,0.92640253,95722.0,95721.0,0.00025919]
[1733148776625,0.92460087,95722.0,95721.0,0.00025919]
[1733148777054,1.12860087,95722.0,95721.0,0.00025919]
[1733148778024,1.13040253,95722.0,95721.0,0.00025919]
[1733148780073,1.15163355,95722.0,95721.0,0.00025919]
[1733148780318,1.01477989,95722.0,95721.0,0.00025919]
[1733148781927,0.61077989,95722.0,95721.0,0.00112299]
[1733148783186,0.60477989,95722.0,95721.0,0.00112299]
[1733148783398,0.60177989,95722.0,95721.0,0.00112299]
[1733148783626,0.81077989,95722.0,95721.0,0.00112299]
[1733148784675,0.81077989,95722.0,95705.0,0.1236]
[1733148784676,0.25711362,95714.0,95713.0,78.30010474]
[1733148784878,0.25711362,95714.0,95713.0,78.30016405]
[1733148784879,0.35995883,95714.0,95713.0,78.30016405]
[1733148786783,0.36895883,95714.0,95713.0,78.30016405]
[1733148788010,0.37295883,95714.0,95713.0,78.30016405]
[1733148789071,0.11584521,95714.0,95713.0,78.42616405]
[1733148789303,0.31584521,95714.0,95713.0,78.42616405]
[1733148789735,0.213,95714.0,95713.0,78.44916405]
[1733148790205,0.204,95714.0,95713.0,78.44916405]
[1733148790400,0.30684521,95714.0,95713.0,78.44916405]
[1733148790652,0.31284521,95714.0,95713.0,78.44916405]
[1733148790861,0.30684521,95714.0,95713.0,78.44916405]
[1733148791091,0.30284521,95714.0,95713.0,78.44916405]
[1733148791532,0.30584521,95714.0,95713.0,78.44916405]
[1733148792397,0.31184521,95714.0,95713.0,78.44916405]
[1733148792639,0.30584521,95714.0,95713.0,78.44916405]
[1733148792871,0.31184521,95714.0,95713.0,78.44916405]
[1733148794461,0.31184521,95714.0,95713.0,78.45002815]
[1733148796862,0.209,95714.0,95713.0,78.45002815]
[1733148806429,0.2107286,95714.0,95713.0,78.45002815]
[1733148807370,0.2077286,95714.0,95713.0,78.45002815]
[1733148807598,0.0077286,95714.0,95713.0,78.45002815]
[1733148807810,0.0047286,95714.0,95713.0,78.45002815]
[1733148808240,0.0017286,95714.0,95713.0,78.45002815]
[1733148810503,0.2017286,95714.0,95713.0,78.45002815]
[1733148813985,0.2017286,95714.0,95713.0,78.37362815]
[1733148814244,0.36168743,95714.0,95713.0,78.30102815]
[1733148816096,0.36768743,95714.0,95713.0,78.30102815]
[1733148816541,0.45835321,95714.0,95713.0,78.30102815]
[1733148816765,0.46435321,95714.0,95713.0,78.30102815]
[1733148816997,0.46138329,95714.0,95713.0,78.30102815]
[1733148817222,0.37068743,95714.0,95713.0,78.30102815]
[1733148819286,0.7111861,95714.0,95713.0,78.30102815]
[1733148819734,0.83633543,95714.0,95713.0,78.30102815]
[1733148820027,0.97688574,95714.0,95713.0,78.30102815]
[1733148820483,0.83633543,95714.0,95713.0,78.30102815]
[1733148821357,0.97866779,95714.0,95713.0,78.30102815]
[1733148823380,0.83813709,95714.0,95713.0,78.30102815]
[1733148823854,0.97686613,95714.0,95713.0,78.30102815]
[1733148824069,0.97686613,95714.0,95713.0,78.27992615]
[1733148824070,1.04261921,95714.0,95713.0,78.27992615]
[1733148824290,0.98018765,95714.0,95713.0,78.27992615]
[1733148824510,1.16751921,95714.0,95713.0,78.27992615]
[1733148824746,0.96003709,95714.0,95713.0,78.27992615]
[1733148825190,0.96503709,95714.0,95713.0,78.27992615]
[1733148825423,0.95903709,95714.0,95713.0,78.27992615]
[1733148825641,1.10847018,95714.0,95713.0,78.27992615]
[1733148826089,0.91943543,95714.0,95713.0,78.27992615]
[1733148826548,0.91443543,95714.0,95713.0,78.27992615]
[1733148826988,0.91943543,95714.0,95713.0,78.27992615]
[1733148827210,0.92123709,95714.0,95713.0,78.27992615]
[1733148827693,0.92123709,95714.0,95713.0,78.27978559]
[1733148827913,0.92123709,95714.0,95713.0,78.27658571]
[1733148828136,1.06162729,95714.0,95713.0,78.27658571]
[1733148829016,0.92123709,95714.0,95713.0,78.27658571]
[1733148829723,0.93671339,95714.0,95713.0,78.27658571]
[1733148829963,0.57568743,95714.0,95713.0,78.27658571]
[1733148831987,0.59327786,95714.0,95713.0,78.27658571]
[1733148834266,0.39327786,95714.0,95713.0,78.27658571]
[1733148834520,0.39327786,95714.0,95713.0,78.35388571]
[1733148834732,0.31857381,95714.0,95713.0,78.37688571]
[1733148835185,0.52752881,95714.0,95713.0,78.37688571]
[1733148835898,0.52252881,95714.0,95713.0,78.37688571]
[1733148836118,0.51652881,95714.0,95713.0,78.37688571]
[1733148836335,0.52252881,95714.0,95713.0,78.37688571]
[1733148838978,0.31357381,95714.0,95713.0,78.37688571]
[1733148839277,0.51352881,95714.0,95713.0,78.37688571]
[1733148839513,0.52152881,95714.0,95713.0,78.37688571]
[1733148839715,0.31257381,95714.0,95713.0,78.37688571]
[1733148839943,0.52552881,95714.0,95713.0,78.37688571]
[1733148840200,0.31657381,95714.0,95713.0,78.37688571]
[1733148840419,0.52152881,95714.0,95713.0,78.37688571]
[1733148840634,0.2097286,95714.0,95713.0,78.37688571]
[1733148840894,0.2137286,95714.0,95713.0,78.42338571]
[1733148841132,0.0137286,95714.0,95713.0,78.42338571]
[1733148841840,0.0137286,95714.0,95713.0,78.63234371]
[1733148842071,0.0057286,95714.0,95713.0,78.42338571]
[1733148842310,0.2017286,95714.0,95713.0,78.42338571]
[1733148842577,0.2027286,95714.0,95713.0,78.42338571]
[1733148842793,0.4116836,95714.0,95713.0,78.34608571]
[1733148843057,0.51452881,95714.0,95713.0,78.29958571]
[1733148843278,0.51452881,95714.0,95713.0,78.27658571]
[1733148843494,0.57164243,95714.0,95713.0,78.27658571]
[1733148843707,0.57064243,95714.0,95713.0,78.27658571]
[1733148844163,0.57964243,95714.0,95713.0,78.27658571]
[1733148845590,0.58364243,95714.0,95713.0,78.27658571]
[1733148849089,0.58364243,95714.0,95713.0,78.27658571]
[1733148849972,0.58364243,95714.0,95713.0,78.42918571]
[1733148849973,0.2147286,95714.0,95713.0,78.42918571]
[1733148850218,0.0147286,95714.0,95713.0,78.42918571]
[1733148850880,0.0147286,95714.0,95713.0,78.42734427]
[1733148851510,0.0147286,95714.0,95713.0,78.4264965]
[1733148851728,0.0097286,95714.0,95713.0,78.52932796]
[1733148851934,0.0097286,95714.0,95713.0,78.4274965]
[1733148852333,0.0007286,95714.0,95713.0,78.4274965]
[1733148853456,0.0007286,95714.0,95713.0,78.57038288]
[1733148853904,0.0007286,95714.0,95713.0,78.4274965]
[1733148862036,0.0007286,95714.0,95713.0,78.53034171]
[1733148862679,0.0007286,95714.0,95713.0,78.4274965]
[1733148868679,0.0007286,95714.0,95713.0,78.4264965]
[1733148869145,0.0007286,95714.0,95713.0,78.4284965]
[1733148870979,0.0007286,95714.0,95713.0,78.4461243]
[1733148871220,0.0007286,95714.0,95713.0,78.54896951]
[1733148872720,0.0007286,95714.0,95713.0,78.69185589]
[1733148874518,0.0007286,95714.0,95713.0,78.68985589]
[1733148874742,0.0007286,95714.0,95713.0,78.54696951]
[1733148874977,0.0017286,95714.0,95713.0,78.54996951]
[1733148875214,0.0017286,95714.0,95713.0,78.4064965]
[1733148875455,0.0017286,95714.0,95713.0,78.3263965]
[1733148875673,0.0027286,95714.0,95713.0,78.3283965]
[1733148875887,0.0017286,95714.0,95713.0,78.3263965]
[1733148876314,0.0027286,95714.0,95713.0,78.3513965]
[1733148876598,0.0027286,95714.0,95713.0,78.3483965]
[1733148876599,0.0017286,95714.0,95713.0,78.3483965]
[1733148876825,0.0027286,95714.0,95713.0,78.3533965]
[1733148877227,0.0017286,95714.0,95713.0,78.3483965]
[1733148877468,0.0017286,95714.0,95713.0,78.3523965]
[1733148881511,0.0017286,95714.0,95713.0,78.3028965]
[1733148881730,0.38767381,95714.0,95713.0,78.2798965]
[1733148882596,0.38667381,95714.0,95713.0,78.2778965]
[1733148882849,0.39167381,95714.0,95713.0,78.2778965]
[1733148883280,0.2007286,95714.0,95713.0,78.2738965]
[1733148883506,0.2077286,95714.0,95713.0,78.2738965]
[1733148883726,0.2077286,95714.0,95713.0,78.2778965]
[1733148883994,0.0007286,95714.0,95713.0,78.2778965]
[1733148884226,0.0087286,95714.0,95713.0,78.2968965]
[1733148884441,0.0127286,95714.0,95713.0,78.2968965]
[1733148884858,0.0087286,95714.0,95713.0,78.2968965]
[1733148885347,0.0117286,95714.0,95713.0,78.3799965]
[1733148885564,0.0037286,95714.0,95713.0,78.4260965]